Workbook

Sheet 2020
A2: Свод отчетов по исполнению муниципальных заданий учреждений Тонкинского муниципального района за 2020 год
A4: Наименование учреждения | B4: Наименование муниципальной услуги | C4: Ед. изм. натуральных показателей | D4: План | F4: Исполнение | H4: Процент исполнения,%
D5: Натуральные показатели | E5: Стоимостные показатели (руб.) | F5: Натуральные показатели | G5: Стоимостные показатели (руб.) | H5: Натуральные показатели | I5: Стоимостные показатели (руб.)
A6: Образование всего | E6: =E10+E15+E20+E23+E28+E33+E36+E39+E42+E45+E48+E50+E52 -> 148243813.3 | G6: =G10+G15+G20+G23+G28+G33+G36+G39+G42+G45+G48+G50+G52 -> 140271576.3 | I6: =G6/E6*100 -> 94.62221273
A7: МАОУ "Тонкинская ОШ" | B7: Реализация основных общеобразовательных программ начального общего образования | C7: чел. | D7: 253 | E7: 13667300.22 | F7: 253 | G7: 13282981.36 | H7: 100 | I7: =G7/E7*100 -> 97.18804114 | J7: =E7/D7 -> 54020.94949 | K7: =G7/F7 -> 52501.90261
B8: Реализация основных общеобразовательных программ основного общего образования | C8: чел. | D8: 297 | E8: 19669400.41 | F8: 297 | G8: 19669400.41 | H8: 100 | I8: =G8/E8*100 -> 100 | J8: =E8/D8 -> 66226.93741 | K8: =G8/F8 -> 66226.93741
B9: Реализация основных общеобразовательных программ среднего общего образования | C9: чел. | D9: 37 | E9: 3018637.16 | F9: 37 | G9: 3018637.16 | H9: 100 | I9: 100 | J9: 81584.78811 | K9: 81584.78811
B10: Итого | D10: =SUM(D7:D9) -> 587 | E10: =SUM(E7:E9) -> 36355337.79 | F10: =SUM(F7:F9) -> 587 | G10: =SUM(G7:G9) -> 35971018.93 | H10: 100 | I10: 98.94288189 | J10: 61934.13593 | K10: 61279.41896
A11: МБОУ "Пакалевская ОШ" | B11: Реализация основных общеобразовательных программ начального общего образования | C11: чел. | D11: 6 | E11: 2359677.78 | F11: 6 | G11: 2067490 | H11: 100 | I11: 87.61747123 | J11: 393279.63 | K11: 344581.6667
B12: Реализация основных общеобразовательных программ основного общего образования | C12: чел. | D12: 6 | E12: 4261200 | F12: 6 | G12: 4133425.25 | H12: 100 | I12: 97.00143739 | J12: 710200 | K12: 688904.2083
B13: Реализация основных общеобразовательных программ дошкольного образования | C13: чел. | D13: 8 | E13: 2165100 | F13: 8 | G13: 1765100 | H13: 100 | I13: 81.52510277 | J13: 270637.5 | K13: 220637.5
B14: Присмотр и уход | C14: чел. | D14: 8 | E14: 564900 | F14: 8 | G14: 564900 | H14: 100 | I14: 100 | J14: 70612.5 | K14: 70612.5
B15: Итого | D15: =SUM(D11:D14) -> 28 | E15: =SUM(E11:E14) -> 9350877.78 | F15: =SUM(F11:F14) -> 28 | G15: =SUM(G11:G14) -> 8530915.25 | H15: 100 | I15: 91.23117049 | J15: 333959.9207 | K15: 304675.5446
A16: МБОУ "Вязовская ОШ" | B16: Реализация основных общеобразовательных программ начального общего образования | C16: чел. | D16: 15 | E16: 2769667.93 | F16: 15 | G16: 2226245.69 | H16: 100 | I16: 80.37951647 | J16: 184644.5287 | K16: 148416.3793
B17: Реализация основных общеобразовательных программ основного общего образования | C17: чел. | D17: 19 | E17: 5469800 | F17: 19 | G17: 5013871.15 | H17: 100 | I17: 91.66461571 | J17: 287884.2105 | K17: 263887.9553
B18: Реализация основных общеобразовательных программ дошкольного образования | C18: чел. | D18: 12 | E18: 2343800 | F18: 12 | G18: 2343800 | H18: 100 | I18: 100 | J18: 195316.6667 | K18: 195316.6667
B19: Присмотр и уход | C19: чел. | D19: 12 | E19: 1038200 | F19: 12 | G19: 1038200 | H19: 100 | I19: 100 | J19: 86516.66667 | K19: 86516.66667
B20: Итого | D20: =SUM(D16:D19) -> 58 | E20: =SUM(E16:E19) -> 11621467.93 | F20: =SUM(F16:F19) -> 58 | G20: =SUM(G16:G19) -> 10622116.84 | H20: 100 | I20: 91.40081876 | J20: 200370.1367 | K20: 183139.9455
A21: МБОУ "Бердниковская ОШ" | B21: Реализация основных общеобразовательных программ начального общего образования | C21: чел. | D21: 18 | E21: 2597300 | F21: 18 | G21: 2484897.82 | H21: 100 | I21: 95.67234513 | J21: 144294.4444 | K21: 138049.8789
B22: Реализация основных общеобразовательных программ основного общего образования | C22: чел. | D22: 18 | E22: 5127061.3 | F22: 18 | G22: 4912724.56 | H22: 100 | I22: 95.81950112 | J22: 284836.7389 | K22: 272929.1422
B23: Итого | D23: 35 | E23: =SUM(E21:E22) -> 7724361.3 | F23: 35 | G23: =SUM(G21:G22) -> 7397622.38 | H23: 100 | I23: 95.77002023 | J23: 220696.0371 | K23: 211360.6394
A24: МБОУ "Пахутинская ОШ" | B24: Реализация основных общеобразовательных программ начального общего образования | C24: чел. | D24: 7 | E24: 2028530.02 | F24: 7 | G24: 1434652.39 | H24: 100 | I24: 70.72374458 | J24: 289790.0029 | K24: 204950.3414
B25: Реализация основных общеобразовательных программ основного общего образования | C25: чел. | D25: 6 | E25: 4981845.2 | F25: 6 | G25: 4101378.66 | H25: 100 | I25: 82.32649742 | J25: 830307.5333 | K25: 683563.11
B26: Реализация основных общеобразовательных программ дошкольного образования | C26: чел. | D26: 4 | E26: 1219000 | F26: 4 | G26: 1219000 | H26: 100 | I26: 100 | J26: 304750 | K26: 304750
B27: Присмотр и уход | C27: чел. | D27: 4 | E27: 496700 | F27: 4 | G27: 496700 | H27: 100 | I27: 100 | J27: 124175 | K27: 124175
B28: Итого | D28: 21 | E28: =SUM(E24:E27) -> 8726075.22 | F28: 21 | G28: =SUM(G24:G27) -> 7251731.05 | H28: 100 | I28: 83.1041547 | J28: 415527.3914 | K28: 345320.5262
A29: МБОУ "Большесодомовская ОШ" | B29: Реализация основных общеобразовательных программ начального общего образования | C29: чел. | D29: 13 | E29: 2758845.7 | F29: 13 | G29: 2081363.12 | H29: 100 | I29: 75.44325948 | J29: 212218.9 | K29: 160104.8554
B30: Реализация основных общеобразовательных программ основного общего образования | C30: чел. | D30: 15 | E30: 5353200 | F30: 15 | G30: 4571489.34 | H30: 100 | I30: 85.39732011 | J30: 356880 | K30: 304765.956
B31: Реализация основных общеобразовательных программ дошкольного образования | C31: чел. | D31: 12 | E31: 1658400 | F31: 12 | G31: 1658400 | H31: 100 | I31: 100 | J31: 138200 | K31: 138200
B32: Присмотр и уход | C32: чел. | D32: 12 | E32: 672500 | F32: 12 | G32: 672500 | H32: 100 | I32: 100 | J32: 56041.66667 | K32: 56041.66667
B33: Итого | D33: 52 | E33: =SUM(E29:E32) -> 10442945.7 | F33: 52 | G33: =SUM(G29:G32) -> 8983752.46 | H33: 100 | I33: 86.02699581 | J33: 200825.8788 | K33: 172764.4704
A34: МБДОУ д/с №1 "Теремок" | B34: Реализация основных общеобразовательных программ дошкольного образования | C34: чел. | D34: 83 | E34: 7406000 | F34: 83 | G34: 7406000 | H34: 100 | I34: 100 | J34: 89228.91566 | K34: 89228.91566
B35: Присмотр и уход | C35: чел. | D35: 83 | E35: 2467200 | F35: 83 | G35: 2467200 | H35: 100 | I35: 100 | J35: 29725.3012 | K35: 29725.3012
B36: Итого | D36: 166 | E36: =SUM(E34:E35) -> 9873200 | F36: 166 | G36: =SUM(G34:G35) -> 9873200 | H36: 100 | I36: 100 | J36: 59477.10843 | K36: 59477.10843
A37: МБДОУ д/с №2 "Малышок" | B37: Реализация основных общеобразовательных программ дошкольного образования | C37: чел. | D37: 36 | E37: 4733600 | F37: 36 | G37: 4733600 | H37: 100 | I37: 100 | J37: 131488.8889 | K37: 131488.8889
B38: Присмотр и уход | C38: чел. | D38: 36 | E38: 1813400 | F38: 36 | G38: 1813400 | H38: 100 | I38: 100 | J38: 50372.22222 | K38: 50372.22222
B39: Итого | D39: 72 | E39: =SUM(E37:E38) -> 6547000 | F39: 72 | G39: =SUM(G37:G38) -> 6547000 | H39: 100 | I39: 100 | J39: 90930.55556 | K39: 90930.55556
A40: МБДОУ д/с №4 "Солнышко" | B40: Реализация основных общеобразовательных программ дошкольного образования | C40: чел. | D40: 108 | E40: 10244500 | F40: 108 | G40: 10244500 | H40: 100 | I40: 100 | J40: 94856.48148 | K40: 94856.48148
B41: Присмотр и уход | C41: чел. | D41: 108 | E41: 3713500 | F41: 108 | G41: 3713500 | H41: 100 | I41: 100 | J41: 34384.25926 | K41: 34384.25926
B42: Итого | D42: 216 | E42: =SUM(E40:E41) -> 13958000 | F42: 216 | G42: =SUM(G40:G41) -> 13958000 | H42: 100 | I42: 100 | J42: 64620.37037 | K42: 64620.37037
A43: МБДОУ д/с №5 "Сказка" | B43: Реализация основных общеобразовательных программ дошкольного образования | C43: чел. | D43: 57 | E43: 4884483.97 | F43: 57 | G43: 4884483.97 | H43: 100 | I43: 100 | J43: 85692.70123 | K43: 85692.70123
B44: Присмотр и уход | C44: чел. | D44: 57 | E44: 1949400 | F44: 57 | G44: 1949400 | H44: 100 | I44: 100 | J44: 34200 | K44: 34200
B45: Итого | D45: 114 | E45: =SUM(E43:E44) -> 6833883.97 | F45: 114 | G45: =SUM(G43:G44) -> 6833883.97 | H45: 100 | I45: 100 | J45: 59946.35061 | K45: 59946.35061
A46: МБДОУ д/с №8 "Елочка" | B46: Реализация основных общеобразовательных программ дошкольного образования | C46: чел. | D46: 21 | E46: 3269290 | F46: 21 | G46: 3269290 | H46: 100 | I46: 100 | J46: 155680.4762 | K46: 155680.4762
B47: Присмотр и уход | C47: чел. | D47: 21 | E47: 981800 | F47: 21 | G47: 981800 | H47: 100 | I47: 100 | J47: 46752.38095 | K47: 46752.38095
B48: Итого | D48: 42 | E48: =SUM(E46:E47) -> 4251090 | F48: 42 | G48: =SUM(G46:G47) -> 4251090 | H48: 100 | I48: 100 | J48: 101216.4286 | K48: 101216.4286
A49: МБУ ДО ЦДО | B49: реализация дополнительных общеразвивающих программ | C49: чел.-час | D49: 119132 | E49: 9452122.57 | F49: 119132 | G49: 8165451.61 | H49: 100 | I49: =G49/E49*100 -> 86.3874918 | J49: 79.34159227 | K49: 68.54121151
B50: Итого | D50: 119132 | E50: 9452122.57 | F50: 119132 | G50: 8165451.61 | H50: 100 | I50: =G50/E50*100 -> 86.3874918 | J50: 79.34159227 | K50: 68.54121151
A51: МБУ ХЭС СО | B51: Содержание (эксплуатация) имущества, находящегося в государственной (муниципальной ) собственности | C51: ед. | D51: 11 | E51: 13107451 | F51: 11 | G51: 11885793.85 | H51: 100 | I51: =G51/E51*100 -> 90.6796741 | J51: 1191586.455 | K51: 1080526.714
B52: Итого | D52: 11 | E52: 13107451 | F52: 11 | G52: 11885793.85 | H52: 100 | I52: 90.6796741 | J52: 1191586.455 | K52: 1080526.714
A53: Культура | D53: =D56+D59+D62+D64+D66 -> 164635 | E53: =E56+E59+E62+E64+E66 -> 47173405 | F53: 164635 | G53: 47173405 | H53: =F53/D53*100 -> 100 | I53: =G53/E53*100 -> 100
A54: МБУК«МЦКС» | B54: Организация деятельности клубных формирований и формирований самодеятельного творчества | C54: ед. | D54: 141 | E54: 18068000 | F54: 141 | G54: 18068000 | H54: 100 | I54: 100
B55: Организация и проведение культурно-массовых мероприятий | C55: чел. | D55: 80099 | E55: 5584500 | F55: 80099 | G55: 5584500 | H55: 100 | I55: 100
A56: Итого: | C56: х | D56: =SUM(D54:D55) -> 80240 | E56: =SUM(E54:E55) -> 23652500 | F56: 80240 | G56: 23652500 | H56: 100 | I56: 100
A57: МБУК «НКМ» | B57: Публичный показ музейных предметов, музейных колекций | C57: чел. | D57: 1503 | E57: 210160 | F57: 1503 | G57: 210160 | H57: =F57/D57*100 -> 100 | I57: =G57/E57*100 -> 100
B58: Формирование учет, изучение, обеспечение физического сохранения и безопасности музейных предметов, музейных коллекций | C58: ед. | D58: 4430 | E58: 2564614 | F58: 4430 | G58: 2564614 | H58: =F58/D58*100 -> 100 | I58: =G58/E58*100 -> 100
A59: Итого: | C59: х | D59: =SUM(D57:D58) -> 5933 | E59: =SUM(E57:E58) -> 2774774 | F59: 5933 | G59: 2774774 | H59: 100 | I59: 100
A60: МБУК «МЦБС» | B60: Библиотечное, библиографическое и информационное обслуживание пользователей библиотеки | C60: чел. | D60: 50918 | E60: 6084701 | F60: 50918 | G60: 6084701 | H60: =F60/D60*100 -> 100 | I60: =G60/E60*100 -> 100
B61: Библиографическая обработка документов и создание каталогов | C61: ед. | D61: 27444 | E61: 6085119 | F61: 27444 | G61: 6085119 | H61: 100 | I61: 100
A62: Итого: | C62: х | D62: =SUM(D60:D61) -> 78362 | E62: =SUM(E60:E61) -> 12169820 | F62: 78362 | G62: 12169820 | H62: 100 | I62: 100
A63: МБУ ДО "ДМШ" | B63: Реализация дополнительных общеобразовательных предпрофесиональных программ в области исскуств | C63: чел. | D63: 55 | E63: 4005434.02 | F63: 55 | G63: 4005434.02 | H63: =F63/D63*100 -> 100 | I63: 100
A64: Итого: | C64: х | D64: =SUM(D63) -> 55 | E64: =SUM(E63) -> 4005434.02 | F64: 55 | G64: 4005434.02 | H64: 100 | I64: 100
A65: МБУ ДО "ДХШ" | B65: Реализация дополнительных общеобразовательных предпрофесиональных программ в области исскуств | C65: чел. | D65: 45 | E65: 4570876.98 | F65: 45 | G65: 4570876.98 | H65: =F65/D65*100 -> 100 | I65: =G65/E65*100 -> 100
A66: Итого: | C66: х | D66: =SUM(D65) -> 45 | E66: =SUM(E65) -> 4570876.98 | F66: 45 | G66: 4570876.98 | H66: 100 | I66: 100
A67: Спорт | D67: =SUM(D68:D71) -> 164 | E67: =SUM(E68:E71) -> 3806456.04 | F67: 164 | G67: 3475681.56 | H67: =F67/D67*100 -> 100 | I67: =G67/E67*100 -> 91.31017207
A68: МБУ ФСК «Кристалл». | B68: Организация и проведение Официальных Физкультурных (физкультурно-оздоровительных) мероприятий | C68: количество мероприятий | D68: 108 | E68: 3440912.77 | F68: 108 | G68: 3110138.29 | H68: 100 | I68: 90.3870135
B69: Организация и проведение официальных спортивных мероприятий | C69: количество мероприятий | D69: 32 | E69: 355543.27 | F69: 32 | G69: 355543.27 | H69: 100 | I69: 100
B70: Проведение тестирования выполнения нормативов испытаний (тестов) комплекса ГТО | C70: количество мероприятий | D70: 12 | E70: 10000 | F70: 12 | G70: 10000 | H70: 100 | I70: 100
B71: Организация и проведение Физкультурных и спортивных мероприятий в рамках Всероссийского физкультурно-спортивного комплекса «Готов к труду и обороне» (ГТО) (за исключением тестирования выполнения нормативов испытаний комплекса ГТО) | C71: количество мероприятий | D71: 12 | E71: 0 | F71: 12 | G71: 0 | H71: 100 | I71: =G71/F71*100 -> 0
A72: Итого: | D72: =SUM(D68:D71) -> 164 | E72: =SUM(E68:E71) -> 3806456.04 | F72: 164 | G72: 3475681.56 | H72: 100 | I72: 91.31017207
